{"text_format":"3","workbook":"xlsx","n_sheets":1,"sheets":["Витрати на запуск бізнесу"],"not_rendered":{"defined_names":1},"read":"whole","date_system":"1900"}

{"sheet":"Витрати на запуск бізнесу","index":0,"n_rows":120,"n_cols":4,"rows_kept":120,"merged":[[1,1,1,3],[10,1,10,3],[17,1,17,3],[25,1,25,3],[34,1,34,3],[42,1,42,3],[50,1,50,3],[55,1,55,3],[57,1,57,3],[59,1,59,3],[60,1,60,3],[69,1,69,3],[76,1,76,3],[81,1,81,3],[82,1,82,3],[90,1,90,3],[102,1,102,3],[110,1,110,3],[115,1,115,3]]}
["ВИТРАТИ НА ЗАПУСК БІЗНЕСУ",null,null,"НАЗВА КОМПАНІЇ, ТОВ"]
[null,"ПРИМІТКА ПРО ВИКОРИСТАННЯ ЦЬОГО АРКУША\nЧи не кожен, хто започатковує власну справу, недооцінює свої резерви й ризикує понести надмірні витрати. Щоб уникнути цього, радимо серйозно взятися за аналіз і планування. Наш шаблон \"Витрати на запуск бізнесу\" допоможе вам у цьому.\n\nОЦІНКА ВИТРАТ – ПЕРЕДУСІМ\nСкільки коштів вам знадобиться, щоб підготувати й запустити свою справу? При цьому дуже важливо враховувати всі деталі. Складіть список усіх необхідних покупок у кожній категорії. Це передбачає як матеріальні активи (наприклад, устаткування й матеріали), так і послуги (як-от перепланування, страхування). Потім з’ясуйте, де можна придбати необхідні товари й замовити потрібні послуги. Знайдіть кількох постачальників і порівняйте їхні пропозиції. Зважайте не лише на ціни. Не менш важливі умови оплати, репутація та якість обслуговування. "]
[]
[null,"ВИТРАТИ НА ЗАПУСК БІЗНЕСУ"]
[null,"БУДІВЛІ, НЕРУХОМІСТЬ"," ","СУМА"]
[null,"Придбання",null,{"v":0,"d":"0.00₴"}]
[null,"Спорудження",null,{"v":0,"d":"0.00₴"}]
[null,"Перепланування",null,{"v":0,"d":"0.00₴"}]
[null,"Інше",null,{"v":0,"d":"0.00₴"}]
[null,"Підсумок",null,{"$f":"SUBTOTAL(109,Нерухомість[СУМА])","v":{"v":0,"d":"0.00₴"}}]
[]
[null,"МОДЕРНІЗАЦІЯ ОРЕНДОВАНОЇ ВЛАСНОСТІ"," ","СУМА"]
[null,"Пункт 1",null,{"v":0,"d":"0.00₴"}]
[null,"Пункт 2",null,{"v":0,"d":"0.00₴"}]
[null,"Товар 3",null,{"v":0,"d":"0.00₴"}]
[null,"Пункт 4",null,{"v":0,"d":"0.00₴"}]
[null,"Підсумок",null,{"$f":"SUBTOTAL(109,Модернізація[СУМА])","v":{"v":0,"d":"0.00₴"}}]
[]
[null,"СПИСОК ОСНОВНОГО ОБЛАДНАННЯ"," ","СУМА"]
[null,"Меблі",null,{"v":0,"d":"0.00₴"}]
[null,"Обладнання",null,{"v":0,"d":"0.00₴"}]
[null,"Арматура",null,{"v":0,"d":"0.00₴"}]
[null,"Механізми",null,{"v":0,"d":"0.00₴"}]
[null,"Інше",null,{"v":0,"d":"0.00₴"}]
[null,"Підсумок",null,{"$f":"SUBTOTAL(109,ОсновнеОбладнання[СУМА])","v":{"v":0,"d":"0.00₴"}}]
[]
[null,"МІСЦЕВІ Й АДМІНІСТРАТИВНІ ВИТРАТИ"," ","СУМА"]
[null,"Оренда",null,{"v":0,"d":"0.00₴"}]
[null,"Комунальні платежі",null,{"v":0,"d":"0.00₴"}]
[null,"Державні збори й відрахування",null,{"v":0,"d":"0.00₴"}]
[null,"Передоплата за страхуванням",null,{"v":0,"d":"0.00₴"}]
[null,"Оплата за підготовку до відкриття ",null,{"v":0,"d":"0.00₴"}]
[null,"Інше",null,{"v":0,"d":"0.00₴"}]
[null,"Підсумок",null,{"$f":"SUBTOTAL(109,АдміністративніВитрати[СУМА])","v":{"v":0,"d":"0.00₴"}}]
[]
[null,"ЗАПАСИ НА ПОЧАТОК ПЕРІОДУ"," ","СУМА"]
[null,"Категорія 1",null,{"v":0,"d":"0.00₴"}]
[null,"Категорія 2",null,{"v":0,"d":"0.00₴"}]
[null,"Категорія 3",null,{"v":0,"d":"0.00₴"}]
[null,"Категорія 4",null,{"v":0,"d":"0.00₴"}]
[null,"Категорія 5",null,{"v":0,"d":"0.00₴"}]
[null,"Підсумок",null,{"$f":"SUBTOTAL(109,ЗапасиНаПочатокПеріоду[СУМА])","v":{"v":0,"d":"0.00₴"}}]
[]
[null,"РЕКЛАМНО-ІНФОРМАЦІЙНІ ВИТРАТИ"," ","СУМА"]
[null,"Реклама",null,{"v":0,"d":"0.00₴"}]
[null,"Вивіска",null,{"v":0,"d":"0.00₴"}]
[null,"Друк",null,{"v":0,"d":"0.00₴"}]
[null,"Подорожі, розваги",null,{"v":0,"d":"0.00₴"}]
[null,"Інші, додаткові категорії",null,{"v":0,"d":"0.00₴"}]
[null,"Підсумок",null,{"$f":"SUBTOTAL(109,РекламніВитрати[СУМА])","v":{"v":0,"d":"0.00₴"}}]
[]
[null,"ІНШІ ВИТРАТИ"," ","СУМА"]
[null,"Інші витрати 1",null,{"v":0,"d":"0.00₴"}]
[null,"Інші витрати 2",null,{"v":0,"d":"0.00₴"}]
[null,"Підсумок",null,{"$f":"SUBTOTAL(109,ІншіВитрати[СУМА])","v":{"v":0,"d":"0.00₴"}}]
[]
[null,"РЕЗЕРВ ДЛЯ НЕПЕРЕДБАЧУВАНИХ ВИТРАТ",null,{"v":0,"d":"0.00₴"}]
[]
[null,"Оборотний капітал ",null,{"v":0,"d":"0.00₴"}]
[]
[null,"СТВОРІТЬ РЕЗЕРВ ДЛЯ НЕПЕРЕДБАЧУВАНИХ ВИТРАТ\nОбов’язково вкажіть суму, виділену для цього резерву. \n\nВИЗНАЧТЕ ГОТІВКОВИЙ ОБОРОТ\nЩоб почати справу, знадобиться створити банківський рахунок. Готівковий резерв допоможе покрити всі витрати, пов’язані із запуском бізнесу. Зрештою, не завадить розробити план готівкового обороту на найближчі 12 місяців. Це допоможе вам оцінити свої потреби оборотного капіталу. Поки залиште це поле пустим або введіть приблизне значення. Оцінивши свій готівковий оборот, ви зможете ввести дійсно обґрунтоване значення.\n\nВВЕДІТЬ ДЖЕРЕЛА ФІНАНСУВАННЯ\nЗ’ясувавши свої фінансові потреби для запуску бізнесу, можете повернутися до початку цього аркуша. Введіть суму, яку ви готові вкласти, суми, які зможуть виділити ваші партнери або інвестори, а також суму кредитних коштів."]
[]
[null,"ДЖЕРЕЛА ФІНАНСУВАННЯ"]
[null,"ВЛАСНІ ВКЛАДЕННЯ (ІМ’Я ТА % ВЛАСНОСТІ)"," ","СУМА"]
[null,"Ваше ім’я та відсоток власності",null,{"v":0,"d":"0.00₴"}]
[null,"Інший інвестор",null,{"v":0,"d":"0.00₴"}]
[null,"Інший інвестор",null,{"v":0,"d":"0.00₴"}]
[null,"Інший інвестор",null,{"v":0,"d":"0.00₴"}]
[null,"Підсумок",null,{"$f":"SUBTOTAL(109,ВласніІнвестиції[СУМА])","v":{"v":0,"d":"0.00₴"}}]
[]
[null,"БАНКІВСЬКІ ПОЗИКИ"," ","СУМА"]
[null,"Банк 1",null,{"v":0,"d":"0.00₴"}]
[null,"Банк 2",null,{"v":0,"d":"0.00₴"}]
[null,"Банк 3",null,{"v":0,"d":"0.00₴"}]
[null,"Банк 4",null,{"v":0,"d":"0.00₴"}]
[null,"Підсумок",null,{"$f":"SUBTOTAL(109,БанківськіПозики[СУМА])","v":{"v":0,"d":"0.00₴"}}]
[]
[null,"ІНШІ ПОЗИКИ"," ","СУМА"]
[null,"Джерело 1",null,{"v":0,"d":"0.00₴"}]
[null,"Джерело 2",null,{"v":0,"d":"0.00₴"}]
[null,"Підсумок",null,{"$f":"SUBTOTAL(109,ІншіПозики[СУМА])","v":{"v":0,"d":"0.00₴"}}]
[]
[null,"НАДАЙТЕ ЗАБЕЗПЕЧЕННЯ ПОВЕРНЕННЯ ПОЗИКИ\nЯкщо ви звертатиметеся з цим планом до банку для отримання позики, скористайтеся розділом унизу, щоб зафіксувати активи, що виступають гарантійним забезпеченням повернення позики, і оцініть їх вартість. Будьте готові надати докази оцінної вартості заставного майна."]
[]
[null,"ФІНАНСОВЕ ЗВЕДЕННЯ"]
[null,"ДЖЕРЕЛО ФІНАНСУВАННЯ"," ","УСЬОГО"]
[null,"Власні й залучені інвестиції",null,{"$f":"ВласніІнвестиції[[#Totals],[СУМА]]","v":{"v":0,"d":"0.00₴"}}]
[null,"Банківські позики",null,{"$f":"БанківськіПозики[[#Totals],[СУМА]]","v":{"v":0,"d":"0.00₴"}}]
[null,"Інші позики",null,{"$f":"ІншіПозики[[#Totals],[СУМА]]","v":{"v":0,"d":"0.00₴"}}]
[null,"Підсумок",null,{"$f":"SUBTOTAL(109,ДжерелаФінансування[УСЬОГО])","v":{"v":0,"d":"0.00₴"}}]
[]
[null,"ВИТРАТИ НА ЗАПУСК БІЗНЕСУ"," ","УСЬОГО"]
[null,"Будівлі, нерухомість",null,{"$f":"Нерухомість[[#Totals],[СУМА]]","v":{"v":0,"d":"0.00₴"}}]
[null,"Модернізація орендованої власності",null,{"$f":"Модернізація[[#Totals],[СУМА]]","v":{"v":0,"d":"0.00₴"}}]
[null,"Основне обладнання",null,{"$f":"ОсновнеОбладнання[[#Totals],[СУМА]]","v":{"v":0,"d":"0.00₴"}}]
[null,"Місцеві й адміністративні витрати",null,{"$f":"АдміністративніВитрати[[#Totals],[СУМА]]","v":{"v":0,"d":"0.00₴"}}]
[null,"Запаси на початок періоду",null,{"$f":"ЗапасиНаПочатокПеріоду[[#Totals],[СУМА]]","v":{"v":0,"d":"0.00₴"}}]
[null,"Рекламно-інформаційні витрати",null,{"$f":"РекламніВитрати[[#Totals],[СУМА]]","v":{"v":0,"d":"0.00₴"}}]
[null,"Інші витрати",null,{"$f":"ІншіВитрати[[#Totals],[СУМА]]","v":{"v":0,"d":"0.00₴"}}]
[null,"Резервний фонд",null,{"$f":"SUM('Витрати на запуск бізнесу'!$C$57)","v":{"v":0,"d":"0.00₴"}}]
[null,"Оборотний капітал",null,{"$f":"SUM('Витрати на запуск бізнесу'!$C$59)","v":{"v":0,"d":"0.00₴"}}]
[null,"Підсумок",null,{"$f":"SUBTOTAL(109,ВитратиНаЗапуск[УСЬОГО])","v":{"v":0,"d":"0.00₴"}}]
[]
[null,"ПРОПОЗИЦІЯ ПОРУЧИТЕЛЬСТВА Й ЗАБЕЗПЕЧЕННЯ ПОВЕРНЕННЯ ПОЗИКИ"]
[null,"ЗАБЕЗПЕЧЕННЯ ПОВЕРНЕННЯ ПОЗИКИ","ОПИС","ВАРТІСТЬ"]
[null,"Нерухомість",null,{"v":0,"d":"0.00₴"}]
[null,"Інше забезпечення",null,{"v":0,"d":"0.00₴"}]
[null,"Інше забезпечення",null,{"v":0,"d":"0.00₴"}]
[null,"Інше забезпечення",null,{"v":0,"d":"0.00₴"}]
[null,"Підсумок",null,{"$f":"SUBTOTAL(109,Забезпечення[ВАРТІСТЬ])","v":{"v":0,"d":"0.00₴"}}]
[]
[null,"ВЛАСНИКИ"," ","  "]
[null,"Місце для вашого імені"]
[null,"Інший власник"]
[null,"Інший власник"]
[]
[null,"ПОРУЧИТЕЛІ ЗА ПОЗИКОЮ (КРІМ ВЛАСНИКІВ)"," ","  "]
[null,"Поручитель за позикою 1"]
[null,"Поручитель за позикою 2"]
[null,"Поручитель за позикою 3"]